[Event "*** Titled Tuesday Blitz"]
[Site "Chess.com"]
[Date "2020.11.24"]
[Round "6"]
[White "YoungMegaMind"]
[Black "Ajedrez_con_German"]
[Result "0-1"]
[WhiteElo "2295"]
[BlackElo "2501"]
[TimeControl "180+1"]
[EndTime "11:23:28 PST"]
[Termination "Ajedrez_con_German won by checkmate"]

1. d4 {[%clk 0:02:59.7]} 1... d5 {[%clk 0:02:58.7]} 2. c4 {[%clk 0:02:59.6]}
2... c6 {[%clk 0:02:58.8]} 3. Nf3 {[%clk 0:02:56.8]} 3... Nf6 {[%clk 0:02:58.6]}
4. Nc3 {[%clk 0:02:55.7]} 4... e6 {[%clk 0:02:57]} 5. Bg5 {[%clk 0:02:55.2]}
5... Nbd7 {[%clk 0:02:55.4]} 6. cxd5 {[%clk 0:02:55.2]} 6... exd5 {[%clk
0:02:53.8]} 7. e3 {[%clk 0:02:55.4]} 7... Be7 {[%clk 0:02:53.4]} 8. Bd3 {[%clk
0:02:55.2]} 8... O-O {[%clk 0:02:53.1]} 9. Qc2 {[%clk 0:02:54.5]} 9... h6 {[%clk
0:02:52.6]} 10. Bf4 {[%clk 0:02:54.2]} 10... Re8 {[%clk 0:02:52.4]} 11. h3
{[%clk 0:02:53.6]} 11... Nf8 {[%clk 0:02:50.9]} 12. Ne5 {[%clk 0:02:50.9]} 12...
N6d7 {[%clk 0:02:44.6]} 13. O-O-O {[%clk 0:02:40.8]} 13... Nxe5 {[%clk
0:02:40.7]} 14. Bxe5 {[%clk 0:02:41.7]} 14... Bd6 {[%clk 0:02:40.2]} 15. Bxd6
{[%clk 0:02:41.3]} 15... Qxd6 {[%clk 0:02:40]} 16. g4 {[%clk 0:02:41.4]} 16...
Bd7 {[%clk 0:02:34.5]} 17. h4 {[%clk 0:02:38.8]} 17... c5 {[%clk 0:02:34.6]} 18.
dxc5 {[%clk 0:02:30.4]} 18... Qxc5 {[%clk 0:02:34.8]} 19. Rdg1 {[%clk
0:02:28.6]} 19... d4 {[%clk 0:02:14.9]} 20. exd4 {[%clk 0:02:21]} 20... Qxd4
{[%clk 0:02:15.1]} 21. Kb1 {[%clk 0:02:12.7]} 21... Bc6 {[%clk 0:02:12.2]} 22.
Rh3 {[%clk 0:02:07.5]} 22... Rad8 {[%clk 0:01:51.9]} 23. Rhg3 {[%clk 0:01:53.6]}
23... Ne6 {[%clk 0:01:30.1]} 24. Rd1 {[%clk 0:01:27.8]} 24... Qf4 {[%clk
0:01:07.5]} 25. g5 {[%clk 0:01:18.7]} 25... Nd4 {[%clk 0:00:54.4]} 26. Qc1
{[%clk 0:00:45.2]} 26... Qxc1+ {[%clk 0:00:41]} 27. Kxc1 {[%clk 0:00:42.2]}
27... hxg5 {[%clk 0:00:31.8]} 28. Rxg5 {[%clk 0:00:35.6]} 28... Nf3 {[%clk
0:00:29.5]} 29. Rg3 {[%clk 0:00:33.8]} 29... Ne5 {[%clk 0:00:26.7]} 30. Bc2
{[%clk 0:00:20.6]} 30... Rxd1+ {[%clk 0:00:26.3]} 31. Nxd1 {[%clk 0:00:21.5]}
31... Kf8 {[%clk 0:00:27.2]} 32. Ne3 {[%clk 0:00:21.4]} 32... g6 {[%clk
0:00:26.3]} 33. h5 {[%clk 0:00:20.5]} 33... gxh5 {[%clk 0:00:26.1]} 34. Rh3
{[%clk 0:00:20.8]} 34... Ng4 {[%clk 0:00:23.6]} 35. Nxg4 {[%clk 0:00:19.8]}
35... hxg4 {[%clk 0:00:24.5]} 36. Rg3 {[%clk 0:00:20.1]} 36... Bf3 {[%clk
0:00:23.9]} 37. Kd2 {[%clk 0:00:19]} 37... Re2+ {[%clk 0:00:23.7]} 38. Kc3
{[%clk 0:00:19.2]} 38... Rxf2 {[%clk 0:00:24.6]} 39. Bd3 {[%clk 0:00:18.5]}
39... Rg2 {[%clk 0:00:23.1]} 40. Rxg2 {[%clk 0:00:18.2]} 40... Bxg2 {[%clk
0:00:24]} 41. Kd4 {[%clk 0:00:18.7]} 41... g3 {[%clk 0:00:21.7]} 42. Ke3 {[%clk
0:00:18.8]} 42... Bd5 {[%clk 0:00:21.8]} 43. Be2 {[%clk 0:00:18.2]} 43... g2
{[%clk 0:00:20.5]} 44. Kf2 {[%clk 0:00:18.3]} 44... Ke7 {[%clk 0:00:20.7]} 45.
b3 {[%clk 0:00:18]} 45... Kd6 {[%clk 0:00:20.8]} 46. Bg4 {[%clk 0:00:17.9]}
46... Ke5 {[%clk 0:00:20.4]} 47. Bh3 {[%clk 0:00:17.7]} 47... f5 {[%clk
0:00:19.4]} 48. Kg1 {[%clk 0:00:17.2]} 48... f4 {[%clk 0:00:18.7]} 49. Kf2
{[%clk 0:00:17]} 49... f3 {[%clk 0:00:18.5]} 50. Bc8 {[%clk 0:00:16.7]} 50... b6
{[%clk 0:00:18.5]} 51. Ba6 {[%clk 0:00:16.5]} 51... Kd4 {[%clk 0:00:18.2]} 52.
Bb5 {[%clk 0:00:16.4]} 52... Kc3 {[%clk 0:00:18]} 53. Bd7 {[%clk 0:00:15.9]}
53... Kb2 {[%clk 0:00:17.8]} 54. a4 {[%clk 0:00:15.7]} 54... Kxb3 {[%clk
0:00:17.3]} 55. a5 {[%clk 0:00:15.8]} 55... bxa5 {[%clk 0:00:17.3]} 56. Bg4
{[%clk 0:00:15]} 56... a4 {[%clk 0:00:17.4]} 57. Kg1 {[%clk 0:00:15]} 57... a3
{[%clk 0:00:17.4]} 58. Kh2 {[%clk 0:00:15.3]} 58... a2 {[%clk 0:00:17.6]} 59.
Be6 {[%clk 0:00:13.8]} 59... Bxe6 {[%clk 0:00:16.7]} 60. Kg1 {[%clk 0:00:13.6]}
60... f2+ {[%clk 0:00:16]} 61. Kh2 {[%clk 0:00:14.5]} 61... g1=Q# {[%clk
0:00:16.2]} 0-1

[Event "*** Titled Tuesday Blitz"]
[Site "Chess.com"]
[Date "2020.11.24"]
[Round "6"]
[White "sjam6687"]
[Black "maximnovik"]
[Result "1-0"]
[WhiteElo "2796"]
[BlackElo "2534"]
[TimeControl "180+1"]
[EndTime "11:23:31 PST"]
[Termination "sjam6687 won on time"]

1. d4 {[%clk 0:03:00.9]} 1... Nf6 {[%clk 0:02:43.4]} 2. Nf3 {[%clk 0:03:01]}
2... g6 {[%clk 0:02:43.8]} 3. c4 {[%clk 0:02:59.5]} 3... Bg7 {[%clk 0:02:44]} 4.
g3 {[%clk 0:02:59.4]} 4... O-O {[%clk 0:02:40.3]} 5. Bg2 {[%clk 0:02:59.2]} 5...
d5 {[%clk 0:02:40.8]} 6. cxd5 {[%clk 0:02:56]} 6... Nxd5 {[%clk 0:02:39.8]} 7.
O-O {[%clk 0:02:56.9]} 7... Nc6 {[%clk 0:02:40.3]} 8. Nc3 {[%clk 0:02:55.3]}
8... e5 {[%clk 0:02:40.6]} 9. Nxe5 {[%clk 0:02:52.8]} 9... Nxe5 {[%clk 0:02:37]}
10. Nxd5 {[%clk 0:02:50.1]} 10... Nd7 {[%clk 0:02:02.6]} 11. e4 {[%clk
0:02:41.3]} 11... Nb6 {[%clk 0:01:52.9]} 12. Nxb6 {[%clk 0:02:38.9]} 12... axb6
{[%clk 0:01:52.9]} 13. Be3 {[%clk 0:02:39.8]} 13... c6 {[%clk 0:01:51.7]} 14.
Qd2 {[%clk 0:02:30.6]} 14... f5 {[%clk 0:01:50]} 15. e5 {[%clk 0:02:28.6]} 15...
Be6 {[%clk 0:01:49.8]} 16. a3 {[%clk 0:02:25.3]} 16... Bd5 {[%clk 0:01:47.9]}
17. Bxd5+ {[%clk 0:02:15.2]} 17... Qxd5 {[%clk 0:01:47.3]} 18. f4 {[%clk
0:02:15.6]} 18... Rfd8 {[%clk 0:01:44.9]} 19. Qg2 {[%clk 0:02:12.6]} 19... Bf8
{[%clk 0:01:41.3]} 20. Rac1 {[%clk 0:01:53.4]} 20... Ra4 {[%clk 0:01:37]} 21.
Rc3 {[%clk 0:01:41.1]} 21... b5 {[%clk 0:01:34.1]} 22. Rfc1 {[%clk 0:01:39.3]}
22... Kf7 {[%clk 0:01:28.4]} 23. Qxd5+ {[%clk 0:01:32]} 23... Rxd5 {[%clk
0:01:27.4]} 24. Kf2 {[%clk 0:01:32.9]} 24... Ke6 {[%clk 0:01:26.7]} 25. Ke2
{[%clk 0:01:31.7]} 25... Be7 {[%clk 0:01:25.8]} 26. h3 {[%clk 0:01:30.1]} 26...
Bd8 {[%clk 0:01:25]} 27. g4 {[%clk 0:01:28.1]} 27... Bb6 {[%clk 0:01:24.4]} 28.
Rxc6+ {[%clk 0:01:20.5]} 28... bxc6 {[%clk 0:01:22.2]} 29. Rxc6+ {[%clk
0:01:21.4]} 29... Kd7 {[%clk 0:01:15.4]} 30. Rxb6 {[%clk 0:01:21.4]} 30... Rc4
{[%clk 0:01:12.4]} 31. Kd3 {[%clk 0:01:18]} 31... Rc6 {[%clk 0:01:12.2]} 32.
Rb7+ {[%clk 0:01:13.3]} 32... Rc7 {[%clk 0:01:10.3]} 33. Rb8 {[%clk 0:01:12.7]}
33... Rc8 {[%clk 0:01:08.3]} 34. Rb6 {[%clk 0:01:10.2]} 34... Rc6 {[%clk
0:01:07.7]} 35. Rb7+ {[%clk 0:01:06.6]} 35... Rc7 {[%clk 0:01:07.5]} 36. Rxc7+
{[%clk 0:01:06.9]} 36... Kxc7 {[%clk 0:01:07.3]} 37. Kc3 {[%clk 0:01:04]} 37...
Kd7 {[%clk 0:01:00.8]} 38. g5 {[%clk 0:01:02]} 38... Kc6 {[%clk 0:00:59.7]} 39.
Kb4 {[%clk 0:00:59.5]} 39... Rd7 {[%clk 0:00:57.2]} 40. b3 {[%clk 0:00:57.7]}
40... Rb7 {[%clk 0:00:55.6]} 41. h4 {[%clk 0:00:50.9]} 41... Kd5 {[%clk
0:00:55.2]} 42. Bf2 {[%clk 0:00:51.2]} 42... Rb8 {[%clk 0:00:42.2]} 43. Be3
{[%clk 0:00:49.3]} 43... Ke4 {[%clk 0:00:36.3]} 44. Bf2 {[%clk 0:00:48.4]} 44...
Kxf4 {[%clk 0:00:34.2]} 45. Kc5 {[%clk 0:00:46.3]} 45... Kf3 {[%clk 0:00:31.9]}
46. Bg1 {[%clk 0:00:42.3]} 46... f4 {[%clk 0:00:30.7]} 47. d5 {[%clk 0:00:40.4]}
47... Kg2 {[%clk 0:00:30]} 48. Bd4 {[%clk 0:00:38.1]} 48... Rc8+ {[%clk
0:00:25.1]} 49. Kd6 {[%clk 0:00:38]} 49... Kf3 {[%clk 0:00:22.7]} 50. e6 {[%clk
0:00:36.3]} 50... Ke4 {[%clk 0:00:23]} 51. Bb6 {[%clk 0:00:35.4]} 51... Rb8
{[%clk 0:00:19.4]} 52. Kc7 {[%clk 0:00:31.1]} 52... Ra8 {[%clk 0:00:06.9]} 53.
d6 {[%clk 0:00:29.5]} 53... Kd5 {[%clk 0:00:06.4]} 54. e7 {[%clk 0:00:27.3]}
54... Ke6 {[%clk 0:00:06.5]} 55. Bc5 {[%clk 0:00:25.2]} 55... f3 {[%clk
0:00:05.2]} 56. d7 {[%clk 0:00:23.7]} 56... Ra7+ {[%clk 0:00:02.8]} 57. Bxa7
{[%clk 0:00:21.9]} 1-0

[Event "*** Titled Tuesday Blitz"]
[Site "Chess.com"]
[Date "2020.11.24"]
[Round "6"]
[White "hansen"]
[Black "Sviridov_Valery"]
[Result "1-0"]
[WhiteElo "2943"]
[BlackElo "2824"]
[TimeControl "180+1"]
[EndTime "11:23:32 PST"]
[Termination "hansen won on time"]

1. e4 {[%clk 0:03:00.9]} 1... Nf6 {[%clk 0:02:58.2]} 2. e5 {[%clk 0:03:00.7]}
2... Nd5 {[%clk 0:02:58]} 3. c4 {[%clk 0:03:01.1]} 3... Nb6 {[%clk 0:02:57.9]}
4. d4 {[%clk 0:03:01.6]} 4... d6 {[%clk 0:02:58]} 5. exd6 {[%clk 0:03:02.1]}
5... exd6 {[%clk 0:02:58.9]} 6. Nc3 {[%clk 0:02:57.8]} 6... Be7 {[%clk
0:02:59.2]} 7. Bd3 {[%clk 0:02:58.4]} 7... Nc6 {[%clk 0:02:54.4]} 8. Nge2 {[%clk
0:02:58.5]} 8... O-O {[%clk 0:02:54.1]} 9. O-O {[%clk 0:02:58.4]} 9... Bf6
{[%clk 0:02:54.7]} 10. Be3 {[%clk 0:02:54.8]} 10... Re8 {[%clk 0:02:55]} 11. h3
{[%clk 0:02:51.5]} 11... d5 {[%clk 0:02:54.9]} 12. c5 {[%clk 0:02:44.4]} 12...
Nc4 {[%clk 0:02:55.2]} 13. Bxc4 {[%clk 0:02:44.6]} 13... dxc4 {[%clk 0:02:56.1]}
14. Qa4 {[%clk 0:02:45.2]} 14... Be6 {[%clk 0:02:56.3]} 15. Rad1 {[%clk
0:02:41.6]} 15... Ne7 {[%clk 0:02:53.9]} 16. Nf4 {[%clk 0:02:25]} 16... Qd7
{[%clk 0:02:28.1]} 17. Qb4 {[%clk 0:01:30]} 17... Nd5 {[%clk 0:01:56.6]} 18.
Qxb7 {[%clk 0:01:17.7]} 18... Reb8 {[%clk 0:01:38.9]} 19. Qa6 {[%clk 0:01:09.4]}
19... Rxb2 {[%clk 0:01:38.4]} 20. Nfxd5 {[%clk 0:00:44.5]} 20... Bxd5 {[%clk
0:01:39.3]} 21. Nxd5 {[%clk 0:00:21.7]} 21... Qxd5 {[%clk 0:01:40.2]} 22. Rc1
{[%clk 0:00:22.1]} 22... c3 {[%clk 0:01:31.8]} 23. Rxc3 {[%clk 0:00:21.4]} 23...
Rxa2 {[%clk 0:01:31]} 24. Ra3 {[%clk 0:00:21.6]} 24... Rxa3 {[%clk 0:01:14.5]}
25. Qxa3 {[%clk 0:00:21.8]} 25... a5 {[%clk 0:01:15.4]} 26. Qa4 {[%clk
0:00:20.8]} 26... g6 {[%clk 0:01:13.5]} 27. Rb1 {[%clk 0:00:20.5]} 27... Kg7
{[%clk 0:00:52.3]} 28. c6 {[%clk 0:00:19.8]} 28... Ra6 {[%clk 0:00:49.2]} 29.
Rc1 {[%clk 0:00:20.1]} 29... Rb6 {[%clk 0:00:34.9]} 30. Rc5 {[%clk 0:00:15]}
30... Rb1+ {[%clk 0:00:34.6]} 31. Kh2 {[%clk 0:00:15.6]} 31... Qd6+ {[%clk
0:00:32]} 32. g3 {[%clk 0:00:15.8]} 32... Qe6 {[%clk 0:00:21.8]} 33. Qc2 {[%clk
0:00:08.8]} 33... Ra1 {[%clk 0:00:20.3]} 34. d5 {[%clk 0:00:04.1]} 34... Qd6
{[%clk 0:00:19.3]} 35. Kg2 {[%clk 0:00:03.3]} 35... h5 {[%clk 0:00:18.4]} 36. h4
{[%clk 0:00:03.6]} 36... a4 {[%clk 0:00:18.4]} 37. Ra5 {[%clk 0:00:03.2]} 37...
a3 {[%clk 0:00:17.7]} 38. Qd3 {[%clk 0:00:03.1]} 38... Ra2 {[%clk 0:00:16]} 39.
Ra7 {[%clk 0:00:01.8]} 39... Ra1 {[%clk 0:00:12.7]} 40. Qe4 {[%clk 0:00:02.2]}
40... Rd1 {[%clk 0:00:11.4]} 41. Ra4 {[%clk 0:00:02]} 41... Qxd5 {[%clk
0:00:11.1]} 42. Qxd5 {[%clk 0:00:02.2]} 42... Rxd5 {[%clk 0:00:12]} 43. Rxa3
{[%clk 0:00:03]} 43... Rd6 {[%clk 0:00:12.6]} 44. Ra6 {[%clk 0:00:03.3]} 44...
Be5 {[%clk 0:00:12.6]} 45. Kf3 {[%clk 0:00:03.7]} 45... Re6 {[%clk 0:00:12.5]}
46. Bc5 {[%clk 0:00:03.7]} 46... Rf6+ {[%clk 0:00:10.8]} 47. Ke2 {[%clk
0:00:03.8]} 47... Re6 {[%clk 0:00:11.4]} 48. Kd3 {[%clk 0:00:04.3]} 48... Kf6
{[%clk 0:00:11.1]} 49. Kc4 {[%clk 0:00:04.5]} 49... Kf5 {[%clk 0:00:10.9]} 50.
Kb5 {[%clk 0:00:04.5]} 50... Ke4 {[%clk 0:00:11.2]} 51. Ra4+ {[%clk 0:00:04.8]}
51... Kf3 {[%clk 0:00:11.5]} 52. Ra3+ {[%clk 0:00:05.4]} 52... Kg4 {[%clk
0:00:10.8]} 53. Rd3 {[%clk 0:00:05.8]} 53... Rf6 {[%clk 0:00:09.6]} 54. Rd7
{[%clk 0:00:05.5]} 54... Kf3 {[%clk 0:00:08.9]} 55. Kc4 {[%clk 0:00:05.8]} 55...
Re6 {[%clk 0:00:07.7]} 56. Kd5 {[%clk 0:00:06.1]} 56... Kg2 {[%clk 0:00:01.3]}
57. Rxf7 {[%clk 0:00:06.1]} 57... Re8 {[%clk 0:00:01.1]} 58. Rf8 {[%clk
0:00:05.4]} 1-0

[Event "*** Titled Tuesday Blitz"]
[Site "Chess.com"]
[Date "2020.11.24"]
[Round "6"]
[White "Fh2411"]
[Black "pheonixking2000"]
[Result "1-0"]
[WhiteElo "2565"]
[BlackElo "2789"]
[TimeControl "180+1"]
[EndTime "11:23:32 PST"]
[Termination "Fh2411 won by resignation"]

1. d4 {[%clk 0:03:00.9]} 1... Nf6 {[%clk 0:00:26.9]} 2. Nf3 {[%clk 0:02:58.7]}
2... d5 {[%clk 0:00:26.8]} 3. Bf4 {[%clk 0:02:56]} 3... c5 {[%clk 0:00:26.1]} 4.
e3 {[%clk 0:02:56.2]} 4... Nc6 {[%clk 0:00:27]} 5. Nbd2 {[%clk 0:02:56.3]} 5...
Nh5 {[%clk 0:00:26.6]} 6. dxc5 {[%clk 0:02:26.8]} 6... Nxf4 {[%clk 0:00:26]} 7.
exf4 {[%clk 0:02:27.7]} 7... g6 {[%clk 0:00:26.9]} 8. c3 {[%clk 0:02:27.2]} 8...
a5 {[%clk 0:00:23.6]} 9. a4 {[%clk 0:02:26.4]} 9... Bh6 {[%clk 0:00:18.1]} 10.
g3 {[%clk 0:02:24.3]} 10... O-O {[%clk 0:00:18.7]} 11. Bg2 {[%clk 0:02:20.8]}
11... b6 {[%clk 0:00:19.2]} 12. cxb6 {[%clk 0:02:13.1]} 12... Ba6 {[%clk
0:00:19.4]} 13. Bf1 {[%clk 0:01:58.2]} 13... Qxb6 {[%clk 0:00:14.9]} 14. Bxa6
{[%clk 0:01:57.5]} 14... Rxa6 {[%clk 0:00:15.8]} 15. Qb3 {[%clk 0:01:54.9]}
15... Rb8 {[%clk 0:00:12.3]} 16. Qxb6 {[%clk 0:01:46.1]} 16... Raxb6 {[%clk
0:00:13.2]} 17. b3 {[%clk 0:01:44.6]} 17... d4 {[%clk 0:00:11.7]} 18. c4 {[%clk
0:01:35.7]} 18... Bg7 {[%clk 0:00:10]} 19. O-O {[%clk 0:01:35.5]} 19... Nb4
{[%clk 0:00:10.6]} 20. Rad1 {[%clk 0:01:33.7]} 20... e6 {[%clk 0:00:10.2]} 21.
Rfe1 {[%clk 0:01:25.5]} 21... Na2 {[%clk 0:00:09.9]} 22. Kg2 {[%clk 0:01:17.4]}
22... Nc3 {[%clk 0:00:10.3]} 23. Rc1 {[%clk 0:01:17.1]} 23... h6 {[%clk
0:00:08.8]} 24. Rc2 {[%clk 0:01:16.3]} 24... f5 {[%clk 0:00:08.6]} 25. Ne5
{[%clk 0:01:10.3]} 25... Rd8 {[%clk 0:00:03.3]} 26. Kf3 {[%clk 0:01:02]} 26...
Ra6 {[%clk 0:00:03.3]} 27. h4 {[%clk 0:00:54.9]} 27... Bf8 {[%clk 0:00:03.3]}
28. Nxg6 {[%clk 0:00:54.4]} 28... Bb4 {[%clk 0:00:02.7]} 29. Rg1 {[%clk
0:00:52.9]} 29... d3 {[%clk 0:00:03.6]} 30. Rb2 {[%clk 0:00:50.1]} 30... Kf7
{[%clk 0:00:03.5]} 31. Ne5+ {[%clk 0:00:48.7]} 31... Kf6 {[%clk 0:00:04.1]} 32.
Rc1 {[%clk 0:00:45.9]} 32... h5 {[%clk 0:00:03.8]} 33. c5 {[%clk 0:00:42.8]}
33... Nd5 {[%clk 0:00:02.3]} 34. c6 {[%clk 0:00:39]} 34... Ba3 {[%clk
0:00:02.5]} 35. Rbb1 {[%clk 0:00:38]} 35... Bxc1 {[%clk 0:00:02.1]} 36. Rxc1
{[%clk 0:00:38.9]} 36... Rc8 {[%clk 0:00:03]} 37. Rc5 {[%clk 0:00:37.7]} 37...
Ke7 {[%clk 0:00:02.9]} 38. Ndc4 {[%clk 0:00:37.5]} 38... Nb4 {[%clk 0:00:02.4]}
39. Nxa5 {[%clk 0:00:30.5]} 39... Kd6 {[%clk 0:00:02.9]} 40. Nb7+ {[%clk
0:00:29.6]} 40... Kc7 {[%clk 0:00:02.1]} 41. Ke3 {[%clk 0:00:27.8]} 41... Kb6
{[%clk 0:00:02.2]} 42. Nxd3 {[%clk 0:00:25.2]} 42... Nxd3 {[%clk 0:00:01.4]} 43.
Kxd3 {[%clk 0:00:26.1]} 43... Rxc6 {[%clk 0:00:01.8]} 44. Rb5+ {[%clk 0:00:24]}
44... Kc7 {[%clk 0:00:01.8]} 45. Nc5 {[%clk 0:00:24.6]} 45... Rab6 {[%clk
0:00:02]} 46. Kc4 {[%clk 0:00:23]} 46... Rxb5 {[%clk 0:00:02]} 47. Kxb5 {[%clk
0:00:23.6]} 47... Rd6 {[%clk 0:00:02.9]} 48. Kc4 {[%clk 0:00:21.8]} 48... Kb6
{[%clk 0:00:02.4]} 49. b4 {[%clk 0:00:21.8]} 49... Rd2 {[%clk 0:00:02.6]} 50.
a5+ {[%clk 0:00:22.7]} 50... Kc7 {[%clk 0:00:02.5]} 51. Nxe6+ {[%clk 0:00:23.2]}
51... Kb8 {[%clk 0:00:02.1]} 52. Ng7 {[%clk 0:00:23.2]} 52... Rxf2 {[%clk
0:00:02]} 53. Nxf5 {[%clk 0:00:23.5]} 53... Kc7 {[%clk 0:00:02.2]} 54. b5 {[%clk
0:00:23.6]} 54... Kd7 {[%clk 0:00:02.4]} 55. a6 {[%clk 0:00:23.6]} 55... Ra2
{[%clk 0:00:03]} 56. Kc5 {[%clk 0:00:22.2]} 56... Re2 {[%clk 0:00:02.4]} 57. a7
{[%clk 0:00:21.1]} 57... Ra2 {[%clk 0:00:02.8]} 58. b6 {[%clk 0:00:21.5]} 58...
Ra5+ {[%clk 0:00:03]} 59. Kb4 {[%clk 0:00:20.8]} 59... Ra1 {[%clk 0:00:03.6]}
60. Kb5 {[%clk 0:00:21.4]} 60... Rb1+ {[%clk 0:00:02.1]} 61. Ka6 {[%clk
0:00:21.2]} 1-0

[Event "*** Titled Tuesday Blitz"]
[Site "Chess.com"]
[Date "2020.11.24"]
[Round "6"]
[White "AryanTari"]
[Black "temus_galaktionov"]
[Result "1-0"]
[WhiteElo "2901"]
[BlackElo "2685"]
[TimeControl "180+1"]
[EndTime "11:23:37 PST"]
[Termination "AryanTari won on time"]

1. Nf3 {[%clk 0:03:00.9]} 1... c6 {[%clk 0:03:00.9]} 2. b3 {[%clk 0:02:55.8]}
2... g6 {[%clk 0:03:01.8]} 3. Bb2 {[%clk 0:02:53.8]} 3... Nf6 {[%clk 0:03:02.4]}
4. e4 {[%clk 0:02:54.4]} 4... Bg7 {[%clk 0:03:01.7]} 5. e5 {[%clk 0:02:52.8]}
5... Nd5 {[%clk 0:03:01.2]} 6. d4 {[%clk 0:02:49.2]} 6... d6 {[%clk 0:03:00.7]}
7. Be2 {[%clk 0:02:48.8]} 7... O-O {[%clk 0:03:00.1]} 8. O-O {[%clk 0:02:44.4]}
8... Nf4 {[%clk 0:02:58.4]} 9. h3 {[%clk 0:02:40.8]} 9... Bf5 {[%clk 0:02:52.4]}
10. Re1 {[%clk 0:02:38.4]} 10... Nxe2+ {[%clk 0:02:51.2]} 11. Qxe2 {[%clk
0:02:39.3]} 11... Na6 {[%clk 0:02:38]} 12. a3 {[%clk 0:02:39.7]} 12... Nc7
{[%clk 0:02:36.1]} 13. c4 {[%clk 0:02:32.9]} 13... dxe5 {[%clk 0:02:27.7]} 14.
Nxe5 {[%clk 0:02:32.5]} 14... Ne6 {[%clk 0:02:27.3]} 15. Qe3 {[%clk 0:02:27.4]}
15... Qb6 {[%clk 0:02:06]} 16. Nd7 {[%clk 0:02:11.7]} 16... Bxd4 {[%clk
0:01:47.4]} 17. Nxb6 {[%clk 0:01:59.2]} 17... Bxe3 {[%clk 0:01:46.2]} 18. Nxa8
{[%clk 0:01:59.7]} 18... Bf4 {[%clk 0:01:45.9]} 19. Nc3 {[%clk 0:01:25.6]} 19...
Rxa8 {[%clk 0:01:43.1]} 20. Ne2 {[%clk 0:01:26]} 20... Kf8 {[%clk 0:01:26.3]}
21. b4 {[%clk 0:01:20.1]} 21... Bd6 {[%clk 0:01:16.2]} 22. Nd4 {[%clk
0:01:18.7]} 22... Nxd4 {[%clk 0:01:16]} 23. Bxd4 {[%clk 0:01:19.6]} 23... Be6
{[%clk 0:01:12.8]} 24. c5 {[%clk 0:01:12.6]} 24... Bc7 {[%clk 0:01:11.7]} 25.
Rad1 {[%clk 0:01:13.2]} 25... Bd5 {[%clk 0:01:08.7]} 26. Bc3 {[%clk 0:01:05.1]}
26... f6 {[%clk 0:00:55.2]} 27. b5 {[%clk 0:01:01.8]} 27... Kf7 {[%clk
0:00:50.2]} 28. a4 {[%clk 0:00:54.6]} 28... Rd8 {[%clk 0:00:47.8]} 29. f3 {[%clk
0:00:52.3]} 29... e5 {[%clk 0:00:43.8]} 30. Kf2 {[%clk 0:00:52.7]} 30... Ke6
{[%clk 0:00:43.4]} 31. f4 {[%clk 0:00:49.4]} 31... e4 {[%clk 0:00:40.2]} 32. Ke3
{[%clk 0:00:48.5]} 32... f5 {[%clk 0:00:34.9]} 33. g4 {[%clk 0:00:48.6]} 33...
Rf8 {[%clk 0:00:31.1]} 34. g5 {[%clk 0:00:46.7]} 34... Bb3 {[%clk 0:00:29.6]}
35. Ra1 {[%clk 0:00:41.5]} 35... Rd8 {[%clk 0:00:28.9]} 36. Bd4 {[%clk
0:00:31.1]} 36... Bxf4+ {[%clk 0:00:28]} 37. Kxf4 {[%clk 0:00:32]} 37... Rxd4
{[%clk 0:00:28.2]} 38. a5 {[%clk 0:00:27.4]} 38... cxb5 {[%clk 0:00:26.1]} 39.
a6 {[%clk 0:00:28.1]} 39... Rd3 {[%clk 0:00:19]} 40. Re3 {[%clk 0:00:25.2]}
40... bxa6 {[%clk 0:00:16.6]} 41. Rxa6+ {[%clk 0:00:23.7]} 41... Kd5 {[%clk
0:00:16.2]} 42. c6 {[%clk 0:00:16.5]} 42... Rxe3 {[%clk 0:00:08.2]} 43. Kxe3
{[%clk 0:00:17.4]} 43... Kd6 {[%clk 0:00:08.5]} 44. Rxa7 {[%clk 0:00:17.4]}
44... Kxc6 {[%clk 0:00:07.4]} 45. Rxh7 {[%clk 0:00:18]} 45... Kd5 {[%clk
0:00:06.8]} 46. Rg7 {[%clk 0:00:12.1]} 46... Ke5 {[%clk 0:00:06.5]} 47. Rxg6
{[%clk 0:00:11.6]} 47... f4+ {[%clk 0:00:06.2]} 48. Kf2 {[%clk 0:00:09.1]} 48...
e3+ {[%clk 0:00:05.9]} 49. Ke2 {[%clk 0:00:07]} 49... Bc4+ {[%clk 0:00:05.6]}
50. Kf3 {[%clk 0:00:07.8]} 50... Bd5+ {[%clk 0:00:05.2]} 51. Ke2 {[%clk
0:00:08.4]} 51... Kd4 {[%clk 0:00:02.7]} 52. Rf6 {[%clk 0:00:05.9]} 52... f3+
{[%clk 0:00:03.6]} 53. Kf1 {[%clk 0:00:04.5]} 53... Bc4+ {[%clk 0:00:02.9]} 54.
Kg1 {[%clk 0:00:04.6]} 54... f2+ {[%clk 0:00:03.8]} 55. Kg2 {[%clk 0:00:05.3]}
55... f1=Q+ {[%clk 0:00:02.6]} 56. Rxf1 {[%clk 0:00:05.8]} 56... Bxf1+ {[%clk
0:00:02.9]} 57. Kxf1 {[%clk 0:00:06.7]} 57... Ke5 {[%clk 0:00:01.7]} 58. Ke2
{[%clk 0:00:05.5]} 1-0